Workbook

Sheet saveti
A1: SAVETI U VEZI SA PREDLOŠKOM
A2: Da li postoji jednostavan način za prelazak sa lista Rezime trendova troškova na detalje mesečnih troškova i obrnuto?
A3: Da biste brzo prešli na troškove određenog meseca kliknite na povezanu vezu za navigaciju iznad grafikona, na primer Jan veza za navigaciju u ćeliji B2. Zatim, da biste se vratili na radni list Trendovi troškova kliknite na vezu za navigaciju Rezime u ćeliji D1.
A4: Da biste se vratili na ovaj radni list sa savetima, u radnom listu sa rezimeom izaberite N2. Sa svih radnih listova sa mesecima izaberite stavku E1.
A5: Kako da dodam novi tip troškova u rezime troškova ili nove mesečne troškove?
A6: Rezime troškova ispod grafikona i detalji o troškovima za svaki mesec predstavljeni su Excel tabelama. Da biste dodali nove redove u bilo koju Excel tabelu, uradite nešto od sledećeg:
A7: =ROW(A1)&". Ako tabela nema red sa zbirom, počnite da kucate ispod tabele i ona će se automatski razviti kad pritisnete tastere Enter ili Tab." -> 1. Ako tabela nema red sa zbirom, počnite da kucate ispod tabele i ona će se automatski razviti kad pritisnete tastere Enter ili Tab.
A8: =ROW(A2)&". Postavite pokazivač za ćeliju u poslednju ćeliju iznad reda sa zbirom, na primer sa zbirom za poslednje troškove, a zatim pritisnite taster Tab." -> 2. Postavite pokazivač za ćeliju u poslednju ćeliju iznad reda sa zbirom, na primer sa zbirom za poslednje troškove, a zatim pritisnite taster Tab.
A9: =ROW(A3)&". Kliknite desnim tasterom miša na tabelu i u iskačućem meniju postavite pokazivač na stavku „Umetni“, a zatim izaberite stavke „Redovi tabele iznad“ ili „Redovi tabele ispod“." -> 3. Kliknite desnim tasterom miša na tabelu i u iskačućem meniju postavite pokazivač na stavku „Umetni“, a zatim izaberite stavke „Redovi tabele iznad“ ili „Redovi tabele ispod“.
A10: =ROW(A4)&". U donjem desnom uglu tabele postavite miš na regulator veličine tabele i prevucite ga nadole da biste povećali broj dostupnih redova tabele." -> 4. U donjem desnom uglu tabele postavite miš na regulator veličine tabele i prevucite ga nadole da biste povećali broj dostupnih redova tabele.
A11: Unesite trošak na radni list Rezime u tabelu Rezime troškova, u kolonu Troškovi.
A12: Dodajte iznos troška za svaki tip troška na radni list meseca na koji se trošak odnosi.
A13: na primer: „Trošak 1“ se pojavljuje u mesecima od januara do juna i decembar.
A14: =ROW(A1)&". Troškovi 1 su uneti na radni list sa rezimeom, u okviru „Troškovi“, u tabeli „Rezime_troškova“ (kao naslov za tip troškova)" -> 1. Troškovi 1 su uneti na radni list sa rezimeom, u okviru „Troškovi“, u tabeli „Rezime_troškova“ (kao naslov za tip troškova)
A15: =ROW(A2)&". Za svaki mesec za koji postoje troškovi unesite iznos troškova na odgovarajućem radnom listu za taj mesec." -> 2. Za svaki mesec za koji postoje troškovi unesite iznos troškova na odgovarajućem radnom listu za taj mesec.
A16: =ROW(A3)&". Tip troškova sa radnog lista „Rezime_troškova“ kreira listu kategorija za kolonu „Kategorija“ na radnom listu za svaki mesec." -> 3. Tip troškova sa radnog lista „Rezime_troškova“ kreira listu kategorija za kolonu „Kategorija“ na radnom listu za svaki mesec.
A17: =ROW(A4)&". Koristite listu kategorija u koloni „Kategorija“ da biste izabrali odgovarajući tip troškova za uneti iznos troškova" -> 4. Koristite listu kategorija u koloni „Kategorija“ da biste izabrali odgovarajući tip troškova za uneti iznos troškova
A18: =ROW(A5)&". Da biste dodali nove troškove za bilo koji mesec, dodajte novi red u tabelu „Rezime_troškova“ na radnom listu sa rezimeom, a zatim unesite odgovarajuće detalje o troškovima na radni list za mesec na koji se oni odnose." -> 5. Da biste dodali nove troškove za bilo koji mesec, dodajte novi red u tabelu „Rezime_troškova“ na radnom listu sa rezimeom, a zatim unesite odgovarajuće detalje o troškovima na radni list za mesec na koji se oni odnose.

Sheet rezime
A1: TRENDOVI TROŠKOVA
B2: Jan | C2: Feb | D2: Mart | E2: Apr | F2: Maj | G2: Jun | H2: Jul | I2: Avg | J2: Sep | K2: Okt | L2: Nov | M2: Dec | N2: Saveti
A4: Troškovi | B4: Jan | C4: Feb | D4: Mart | E4: Apr | F4: Maj | G4: Jun | H4: Jul | I4: Avg | J4: Sep | K4: Okt | L4: Nov | M4: Dec | N4: Zbir | O4: Trend
A5: Trošak 1 | B5: =SUMIFS(ExpJan[Iznos],ExpJan[Kategorija],RezimeTroškova[Troškovi]) -> 33.00 | C5: =SUMIFS(ExpFeb[Iznos],ExpFeb[Kategorija],RezimeTroškova[Troškovi]) -> 375.00 | D5: =SUMIFS(ExpMar[Iznos],ExpMar[Kategorija],RezimeTroškova[Troškovi]) -> 33.00 | E5: =SUMIFS(ExpApr[Iznos],ExpApr[Kategorija],RezimeTroškova[Troškovi]) -> 45.00 | F5: =SUMIFS(ExpMay[Iznos],ExpMay[Kategorija],RezimeTroškova[Troškovi]) -> 375.00 | G5: =SUMIFS(ExpJun[Iznos],ExpJun[Kategorija],RezimeTroškova[Troškovi]) -> 201.00 | H5: =SUMIFS(ExpJul[Iznos],ExpJul[Kategorija],RezimeTroškova[Troškovi]) -> 0.00 | I5: =SUMIFS(ExpAug[Iznos],ExpAug[Kategorija],RezimeTroškova[Troškovi]) -> 0.00 | J5: =SUMIFS(ExpSep[Iznos],ExpSep[Kategorija],RezimeTroškova[Troškovi]) -> 0.00 | K5: =SUMIFS(ExpOct[Iznos],ExpOct[Kategorija],RezimeTroškova[Troškovi]) -> 0.00 | L5: =SUMIFS(ExpNov[Iznos],ExpNov[Kategorija],RezimeTroškova[Troškovi]) -> 0.00 | M5: =SUMIFS(ExpDec[Iznos],ExpDec[Kategorija],RezimeTroškova[Troškovi]) -> 201.00 | N5: =SUM(RezimeTroškova[[#This Row],[Jan]:[Dec]]) -> 1,263.00
A6: Trošak 2 | B6: =SUMIFS(ExpJan[Iznos],ExpJan[Kategorija],RezimeTroškova[Troškovi]) -> 238.00 | C6: =SUMIFS(ExpFeb[Iznos],ExpFeb[Kategorija],RezimeTroškova[Troškovi]) -> 238.00 | D6: =SUMIFS(ExpMar[Iznos],ExpMar[Kategorija],RezimeTroškova[Troškovi]) -> 238.00 | E6: =SUMIFS(ExpApr[Iznos],ExpApr[Kategorija],RezimeTroškova[Troškovi]) -> 123.00 | F6: =SUMIFS(ExpMay[Iznos],ExpMay[Kategorija],RezimeTroškova[Troškovi]) -> 111.00 | G6: =SUMIFS(ExpJun[Iznos],ExpJun[Kategorija],RezimeTroškova[Troškovi]) -> 98.00 | H6: =SUMIFS(ExpJul[Iznos],ExpJul[Kategorija],RezimeTroškova[Troškovi]) -> 0.00 | I6: =SUMIFS(ExpAug[Iznos],ExpAug[Kategorija],RezimeTroškova[Troškovi]) -> 0.00 | J6: =SUMIFS(ExpSep[Iznos],ExpSep[Kategorija],RezimeTroškova[Troškovi]) -> 0.00 | K6: =SUMIFS(ExpOct[Iznos],ExpOct[Kategorija],RezimeTroškova[Troškovi]) -> 0.00 | L6: =SUMIFS(ExpNov[Iznos],ExpNov[Kategorija],RezimeTroškova[Troškovi]) -> 0.00 | M6: =SUMIFS(ExpDec[Iznos],ExpDec[Kategorija],RezimeTroškova[Troškovi]) -> 440.00 | N6: =SUM(RezimeTroškova[[#This Row],[Jan]:[Dec]]) -> 1,486.00
A7: Trošak 3 | B7: =SUMIFS(ExpJan[Iznos],ExpJan[Kategorija],RezimeTroškova[Troškovi]) -> 110.00 | C7: =SUMIFS(ExpFeb[Iznos],ExpFeb[Kategorija],RezimeTroškova[Troškovi]) -> 110.00 | D7: =SUMIFS(ExpMar[Iznos],ExpMar[Kategorija],RezimeTroškova[Troškovi]) -> 110.00 | E7: =SUMIFS(ExpApr[Iznos],ExpApr[Kategorija],RezimeTroškova[Troškovi]) -> 125.00 | F7: =SUMIFS(ExpMay[Iznos],ExpMay[Kategorija],RezimeTroškova[Troškovi]) -> 333.00 | G7: =SUMIFS(ExpJun[Iznos],ExpJun[Kategorija],RezimeTroškova[Troškovi]) -> 122.00 | H7: =SUMIFS(ExpJul[Iznos],ExpJul[Kategorija],RezimeTroškova[Troškovi]) -> 0.00 | I7: =SUMIFS(ExpAug[Iznos],ExpAug[Kategorija],RezimeTroškova[Troškovi]) -> 0.00 | J7: =SUMIFS(ExpSep[Iznos],ExpSep[Kategorija],RezimeTroškova[Troškovi]) -> 0.00 | K7: =SUMIFS(ExpOct[Iznos],ExpOct[Kategorija],RezimeTroškova[Troškovi]) -> 0.00 | L7: =SUMIFS(ExpNov[Iznos],ExpNov[Kategorija],RezimeTroškova[Troškovi]) -> 0.00 | M7: =SUMIFS(ExpDec[Iznos],ExpDec[Kategorija],RezimeTroškova[Troškovi]) -> 122.00 | N7: =SUM(RezimeTroškova[[#This Row],[Jan]:[Dec]]) -> 1,032.00
A8: Trošak 4 | B8: =SUMIFS(ExpJan[Iznos],ExpJan[Kategorija],RezimeTroškova[Troškovi]) -> 426.00 | C8: =SUMIFS(ExpFeb[Iznos],ExpFeb[Kategorija],RezimeTroškova[Troškovi]) -> 84.00 | D8: =SUMIFS(ExpMar[Iznos],ExpMar[Kategorija],RezimeTroškova[Troškovi]) -> 84.00 | E8: =SUMIFS(ExpApr[Iznos],ExpApr[Kategorija],RezimeTroškova[Troškovi]) -> 426.00 | F8: =SUMIFS(ExpMay[Iznos],ExpMay[Kategorija],RezimeTroškova[Troškovi]) -> 125.00 | G8: =SUMIFS(ExpJun[Iznos],ExpJun[Kategorija],RezimeTroškova[Troškovi]) -> 187.00 | H8: =SUMIFS(ExpJul[Iznos],ExpJul[Kategorija],RezimeTroškova[Troškovi]) -> 0.00 | I8: =SUMIFS(ExpAug[Iznos],ExpAug[Kategorija],RezimeTroškova[Troškovi]) -> 0.00 | J8: =SUMIFS(ExpSep[Iznos],ExpSep[Kategorija],RezimeTroškova[Troškovi]) -> 0.00 | K8: =SUMIFS(ExpOct[Iznos],ExpOct[Kategorija],RezimeTroškova[Troškovi]) -> 0.00 | L8: =SUMIFS(ExpNov[Iznos],ExpNov[Kategorija],RezimeTroškova[Troškovi]) -> 0.00 | M8: =SUMIFS(ExpDec[Iznos],ExpDec[Kategorija],RezimeTroškova[Troškovi]) -> 187.00 | N8: =SUM(RezimeTroškova[[#This Row],[Jan]:[Dec]]) -> 1,519.00
A9: Trošak 5 | B9: =SUMIFS(ExpJan[Iznos],ExpJan[Kategorija],RezimeTroškova[Troškovi]) -> 54.00 | C9: =SUMIFS(ExpFeb[Iznos],ExpFeb[Kategorija],RezimeTroškova[Troškovi]) -> 54.00 | D9: =SUMIFS(ExpMar[Iznos],ExpMar[Kategorija],RezimeTroškova[Troškovi]) -> 109.00 | E9: =SUMIFS(ExpApr[Iznos],ExpApr[Kategorija],RezimeTroškova[Troškovi]) -> 98.00 | F9: =SUMIFS(ExpMay[Iznos],ExpMay[Kategorija],RezimeTroškova[Troškovi]) -> 33.00 | G9: =SUMIFS(ExpJun[Iznos],ExpJun[Kategorija],RezimeTroškova[Troškovi]) -> 441.00 | H9: =SUMIFS(ExpJul[Iznos],ExpJul[Kategorija],RezimeTroškova[Troškovi]) -> 0.00 | I9: =SUMIFS(ExpAug[Iznos],ExpAug[Kategorija],RezimeTroškova[Troškovi]) -> 0.00 | J9: =SUMIFS(ExpSep[Iznos],ExpSep[Kategorija],RezimeTroškova[Troškovi]) -> 0.00 | K9: =SUMIFS(ExpOct[Iznos],ExpOct[Kategorija],RezimeTroškova[Troškovi]) -> 0.00 | L9: =SUMIFS(ExpNov[Iznos],ExpNov[Kategorija],RezimeTroškova[Troškovi]) -> 0.00 | M9: =SUMIFS(ExpDec[Iznos],ExpDec[Kategorija],RezimeTroškova[Troškovi]) -> 99.00 | N9: =SUM(RezimeTroškova[[#This Row],[Jan]:[Dec]]) -> 888.00
A10: Zbir | B10: =SUBTOTAL(109,RezimeTroškova[Jan]) -> 861.00 | C10: =SUBTOTAL(109,RezimeTroškova[Feb]) -> 861.00 | D10: =SUBTOTAL(109,RezimeTroškova[Mart]) -> 574.00 | E10: =SUBTOTAL(109,RezimeTroškova[Apr]) -> 817.00 | F10: =SUBTOTAL(109,RezimeTroškova[Maj]) -> 977.00 | G10: =SUBTOTAL(109,RezimeTroškova[Jun]) -> 1,049.00 | H10: =SUBTOTAL(109,RezimeTroškova[Jul]) -> 0.00 | I10: =SUBTOTAL(109,RezimeTroškova[Avg]) -> 0.00 | J10: =SUBTOTAL(109,RezimeTroškova[Sep]) -> 0.00 | K10: =SUBTOTAL(109,RezimeTroškova[Okt]) -> 0.00 | L10: =SUBTOTAL(109,RezimeTroškova[Nov]) -> 0.00 | M10: =SUBTOTAL(109,RezimeTroškova[Dec]) -> 1,049.00 | N10: =SUBTOTAL(109,RezimeTroškova[Zbir]) -> 6,188.00

Sheet jan.
A1: TROŠKOVI U JANUARU | D1: Rezime | E1: Saveti
A2: Datum | B2: Broj porudžbenice | C2: Iznos | D2: Kategorija | E2: Opis
A3: =DATE(YEAR(TODAY()),1,4) -> 2016-01-04 | B3: A-12345 | C3: 33.00 | D3: Trošak 1 | E3: Pribor
A4: =DATE(YEAR(TODAY()),1,5) -> 2016-01-05 | B4: A-12346 | C4: 238.00 | D4: Trošak 2
C5: 342.00 | D5: Trošak 4
C6: 110.00 | D6: Trošak 3
C7: 84.00 | D7: Trošak 4
C8: 54.00 | D8: Trošak 5
A9: Zbir | C9: =SUBTOTAL(109,ExpJan[Iznos]) -> 861.00

Sheet feb.
A1: TROŠKOVI U FEBRUARU | D1: Rezime | E1: Saveti
A2: Datum | B2: Broj porudžbenice | C2: Iznos | D2: Kategorija | E2: Opis
A3: =DATE(YEAR(TODAY()),2,3) -> 2016-02-03 | B3: A-12345 | C3: 33.00 | D3: Trošak 1 | E3: Pribor
A4: =DATE(YEAR(TODAY()),2,4) -> 2016-02-04 | B4: A-12346 | C4: 238.00 | D4: Trošak 2
C5: 342.00 | D5: Trošak 1
C6: 110.00 | D6: Trošak 3
C7: 84.00 | D7: Trošak 4
C8: 54.00 | D8: Trošak 5
A9: Zbir | C9: =SUBTOTAL(109,ExpFeb[Iznos]) -> 861.00

Sheet mart
A1: TROŠKOVI U MARTU | D1: Rezime | E1: Saveti
A2: Datum | B2: Broj porudžbenice | C2: Iznos | D2: Kategorija | E2: Opis
A3: =DATE(YEAR(TODAY()),3,5) -> 2016-03-05 | B3: A-12345 | C3: 33.00 | D3: Trošak 1 | E3: Pribor
A4: =DATE(YEAR(TODAY()),3,6) -> 2016-03-06 | B4: A-12346 | C4: 238.00 | D4: Trošak 2
C5: 55.00 | D5: Trošak 5
C6: 110.00 | D6: Trošak 3
C7: 84.00 | D7: Trošak 4
C8: 54.00 | D8: Trošak 5
A9: Zbir | C9: =SUBTOTAL(109,ExpMar[Iznos]) -> 574.00

Sheet apr.
A1: TROŠKOVI U APRILU | D1: Rezime | E1: Saveti
A2: Datum | B2: Broj porudžbenice | C2: Iznos | D2: Kategorija | E2: Opis
A3: =DATE(YEAR(TODAY()),4,4) -> 2016-04-04 | B3: A-12345 | C3: 45.00 | D3: Trošak 1 | E3: Pribor
A4: =DATE(YEAR(TODAY()),4,8) -> 2016-04-08 | B4: A-12346 | C4: 123.00 | D4: Trošak 2
C5: 342.00 | D5: Trošak 4
C6: 125.00 | D6: Trošak 3
C7: 84.00 | D7: Trošak 4
C8: 98.00 | D8: Trošak 5
A9: Zbir | C9: =SUBTOTAL(109,ExpApr[Iznos]) -> 817.00

Sheet maj
A1: TROŠKOVI U MAJU | D1: Rezime | E1: Saveti
A2: Datum | B2: Broj porudžbenice | C2: Iznos | D2: Kategorija | E2: Opis
A3: =DATE(YEAR(TODAY()),5,3) -> 2016-05-03 | B3: A-12345 | C3: 33.00 | D3: Trošak 1 | E3: Pribor
A4: =DATE(YEAR(TODAY()),5,8) -> 2016-05-08 | B4: A-12346 | C4: 111.00 | D4: Trošak 2
C5: 342.00 | D5: Trošak 1
C6: 333.00 | D6: Trošak 3
C7: 125.00 | D7: Trošak 4
C8: 33.00 | D8: Trošak 5
A9: Zbir | C9: =SUBTOTAL(109,ExpMay[Iznos]) -> 977.00

Sheet jun
A1: TROŠKOVI U JUNU | D1: Rezime | E1: Saveti
A2: Datum | B2: Broj porudžbenice | C2: Iznos | D2: Kategorija | E2: Opis
A3: =DATE(YEAR(TODAY()),6,7) -> 2016-06-07 | B3: A-12345 | C3: 201.00 | D3: Trošak 1 | E3: Pribor
A4: =DATE(YEAR(TODAY()),6,8) -> 2016-06-08 | B4: A-12346 | C4: 98.00 | D4: Trošak 2
C5: 342.00 | D5: Trošak 5
C6: 122.00 | D6: Trošak 3
C7: 187.00 | D7: Trošak 4
C8: 99.00 | D8: Trošak 5
A9: Zbir | C9: =SUBTOTAL(109,ExpJun[Iznos]) -> 1,049.00

Sheet jul
A1: TROŠKOVI U JULU | D1: Rezime | E1: Saveti
A2: Datum | B2: Broj porudžbenice | C2: Iznos | D2: Kategorija | E2: Opis
A3: =DATE(YEAR(TODAY()),7,9) -> 2016-07-09 | B3: A-12345 | D3: Trošak 1 | E3: Pribor
A4: =DATE(YEAR(TODAY()),7,14) -> 2016-07-14 | B4: A-12346 | D4: Trošak 2
D5: Trošak 2
D6: Trošak 3
D7: Trošak 4
D8: Trošak 5
A9: Zbir | C9: =SUBTOTAL(109,ExpJul[Iznos]) -> 0.00

Sheet avg.
A1: TROŠKOVI U AVGUSTU | D1: Rezime | E1: Saveti
A2: Datum | B2: Broj porudžbenice | C2: Iznos | D2: Kategorija | E2: Opis
A3: =DATE(YEAR(TODAY()),8,8) -> 2016-08-08 | B3: A-12345 | D3: Trošak 1 | E3: Pribor
A4: =DATE(YEAR(TODAY()),8,9) -> 2016-08-09 | B4: A-12346 | D4: Trošak 2
D5: Trošak 2
D6: Trošak 3
D7: Trošak 4
D8: Trošak 5
A9: Zbir | C9: =SUBTOTAL(109,ExpAug[Iznos]) -> 0.00

Sheet sep.
A1: TROŠKOVI U SEPTEMBRU | D1: Rezime | E1: Saveti
A2: Datum | B2: Broj porudžbenice | C2: Iznos | D2: Kategorija | E2: Opis
A3: =DATE(YEAR(TODAY()),9,9) -> 2016-09-09 | B3: A-12345 | D3: Trošak 1 | E3: Pribor
A4: =DATE(YEAR(TODAY()),9,15) -> 2016-09-15 | B4: A-12346 | D4: Trošak 2
D5: Trošak 2
D6: Trošak 3
D7: Trošak 4
D8: Trošak 5
A9: Zbir | C9: =SUBTOTAL(109,ExpSep[Iznos]) -> 0.00

Sheet okt.
A1: TROŠKOVI U OKTOBRU | D1: Rezime | E1: Saveti
A2: Datum | B2: Broj porudžbenice | C2: Iznos | D2: Kategorija | E2: Opis
A3: =DATE(YEAR(TODAY()),10,10) -> 2016-10-10 | B3: A-12345 | D3: Trošak 1 | E3: Pribor
A4: =DATE(YEAR(TODAY()),10,21) -> 2016-10-21 | B4: A-12346 | D4: Trošak 2
D5: Trošak 2
D6: Trošak 3
D7: Trošak 4
D8: Trošak 5
A9: Zbir | C9: =SUBTOTAL(109,ExpOct[Iznos]) -> 0.00

Sheet nov.
A1: TROŠKOVI U NOVEMBRU | D1: Rezime | E1: Saveti
A2: Datum | B2: Broj porudžbenice | C2: Iznos | D2: Kategorija | E2: Opis
A3: =DATE(YEAR(TODAY()),11,14) -> 2016-11-14 | B3: A-12345 | D3: Trošak 1 | E3: Pribor
A4: =DATE(YEAR(TODAY()),11,21) -> 2016-11-21 | B4: A-12346 | D4: Trošak 2
D5: Trošak 2
D6: Trošak 3
D7: Trošak 4
D8: Trošak 5
A9: Zbir | C9: =SUBTOTAL(109,ExpNov[Iznos]) -> 0.00

Sheet dec.
A1: TROŠKOVI U DECEMBRU | D1: Rezime | E1: Saveti
A2: Datum | B2: Broj porudžbenice | C2: Iznos | D2: Kategorija | E2: Opis
A3: =DATE(YEAR(TODAY()),12,2) -> 2016-12-02 | B3: A-12345 | C3: 201.00 | D3: Trošak 1 | E3: Pribor
A4: =DATE(YEAR(TODAY()),12,24) -> 2016-12-24 | B4: A-12346 | C4: 98.00 | D4: Trošak 2
C5: 342.00 | D5: Trošak 2
C6: 122.00 | D6: Trošak 3
C7: 187.00 | D7: Trošak 4
C8: 99.00 | D8: Trošak 5
A9: Zbir | C9: =SUBTOTAL(109,ExpDec[Iznos]) -> 1,049.00
